Cogmind - Beta 14 @@@ ROGUE MODE // 2024.09.15 @ 21:53:29 Player: ZarZap Result: Self-destructed Performance ------------- Evolutions (2) 1000 Regions Visited (4) 800 Robots Destroyed (31) 155 Value Destroyed (894) 894 Prototype IDs (0) 0 Alien Tech Used (0) 0 Bonus (99) 99 TOTAL SCORE: 2948 Bonus ------- Follower Combat Kills 99 Cogmind --------- Core Integrity 99/550 Matter 28/300 Energy 9/100 System Corruption 0% Temperature Warning (337) Movement Walking (330) Ox3 Location -8/Materials Parts ------- > --- POWER (1) -------- (None) > --- PROPULSION (4) --- Aluminum Leg > --- UTILITY (3) ------ Large Storage Unit Energy Filter Recalibrator > --- WEAPON (3) ------- Shotgun Shock Bomb Launcher > --- INVENTORY (15) --- Heat Sink Medium Laser Minigun Peak State ------------ > --- POWER ------------ Light Ion Engine > --- PROPULSION ------- Aluminum Leg Aluminum Leg Aluminum Leg Aluminum Leg > --- UTILITY ---------- Large Storage Unit Recoil Stabilizer Hardened Medium Armor Plating > --- WEAPON ----------- Shotgun Minigun Shock Bomb Launcher > --- INVENTORY -------- Aluminum Leg Heat Sink Energy Filter Recalibrator Medium Laser Field Laser Beam Cannon Shotgun Minigun Shock Bomb Launcher Rocket Launcher [Rating: 22] Favorites ----------- Power Ion Engine Engine Ion Engine Power Core Light Nuclear Core Propulsion Aluminum Leg Leg Aluminum Leg Wheel Wheel Utility Large Storage Unit Device Improved Heat Sink Storage Large Storage Unit Protection Hardened Medium Armor Plating Weapon Medium Laser Energy Gun Medium Laser Energy Cannon Beam Cannon Ballistic Gun Minigun Launcher Shock Bomb Launcher Build | -11 -10 -10 -9 -8 ------- Run | Yrd Mat Min Mat Mat Slots Evolved 4 | . . . 2 2 Power . | . . . . . Propulsion 2 | . . . 2 . Utility 1 | . . . . 1 Weapon 1 | . . . . 1 Parts Attached 47 | 6 7 . 8 26 Power 3 | 1 . . . 2 Engine 2 | 1 . . . 1 Core 1 | . . . . 1 Reactor . | . . . . . Propulsion 11 | 2 2 . 4 3 Treads . | . . . . . Leg 9 | . 2 . 4 3 Wheel 2 | 2 . . . . Hover . | . . . . . Flight . | . . . . . Utility 11 | 1 3 . 1 6 Device 7 | . 2 . . 5 Storage 2 | 1 1 . . . Processor . | . . . . . Hackware . | . . . . . Protection 2 | . . . 1 1 Artifact . | . . . . . Weapon 22 | 2 2 . 3 15 Energy Gun 6 | 2 1 . . 3 Energy Cannon 2 | . . . . 2 Ballistic Gun 9 | . 1 . 3 5 Ballistic Cannon . | . . . . . Launcher 5 | . . . . 5 Special Weapon . | . . . . . Impact Weapon . | . . . . . Slashing Weapon . | . . . . . Piercing Weapon . | . . . . . Special Melee Weapon . | . . . . . Unidentified Prototypes . | . . . . . Parts Lost 16 | . . . 1 15 Power 3 | . . . . 3 Propulsion 6 | . . . . 6 Utility 3 | . . . 1 2 Weapon 4 | . . . . 4 Highest Loss Streak 12 | . . . 1 12 To Critical Strikes . | . . . . . Average Slot Usage (%) 96 | . 98 100 98 93 Engine 11 | . 14 14 11 8 Leg 30 | . 6 28 44 31 Wheel 2 | . 21 . . . Device 9 | . 12 14 1 9 Storage 11 | . 14 14 11 9 Protection 4 | . . . 8 7 Energy Gun 8 | . 21 14 2 3 Energy Cannon 1 | . . . . 3 Ballistic Gun 14 | . 6 14 19 14 Launcher 1 | . . . . 4 Peak Build Rating 22 | 6 9 9 16 22 Average Rating 13 | 4 7 9 14 18 On Entrance 7 | . 6 9 9 13 Naked Turns . | . . . . . Heaviest Build 45 | 13 30 30 38 45 Greatest Support 40 | 20 20 20 40 40 Greatest Overweight (x) 9 | . 2 1 . 9 Average Overweight (x) . | . . 1 . . Largest Inventory Capacity 15 | 8 15 15 15 15 Average Capacity 14 | 6 14 15 15 15 Most Carried 14 | 2 7 8 14 13 Average Carried 9 | 1 3 7 10 11 Final Capacity 15 | 8 15 15 15 15 Final Carried 13 | 2 7 8 13 3 Class Distribution -------------------- 43% | Mutant 24% | Scavenger-Mutant 20% | Scavenger-Tank 7% | Tank 4% | Scavenger-Skirmisher Dominant Class ---------------- Mutant | -10/Materials Mutant | -10/Mines Scavenger-Mutant | -9/Materials Scavenger-Tank | -8/Materials Resources | -11 -10 -10 -9 -8 ----------- Run | Yrd Mat Min Mat Mat Matter Collected 831 | 174 207 11 289 150 Remotely . | . . . . . Salvage Created 1210 | . 325 20 453 412 Parts 77 | . 19 3 27 28 Haulers Intercepted . | . . . . . Recyclers Shooed 3 | . 2 1 . . Parts Field Recycled . | . . . . . Retrieved Matter . | . . . . . Parts Self-Destructed . | . . . . . Prevented . | . . . . . Kills | -11 -10 -10 -9 -8 ------- Run | Yrd Mat Min Mat Mat Combat Hostiles Destroyed 20 | . 4 . 8 8 Guns 17 | . 4 . 8 5 AOE 3 | . . . . 3 Classes Destroyed 8 | . 3 1 3 1 Worker 2 | . . . 1 1 Builder 1 | . . . . 1 Tunneler 2 | . . 1 . 1 Recycler 4 | . 2 . 2 . Watcher 2 | . 1 . . 1 Swarmer 2 | . . . 2 . Grunt 16 | . 4 . 5 7 Sentry 2 | . . . 1 1 Best Kill Streak 7 | . 7 1 4 4 Combat Bots Only 4 | . 4 . 3 2 Max Kills in Single Turn 4 | . 2 1 1 4 Gunslinging 1 | . 1 . . . Exploded 2 | . . . . 2 Melee . | . . . . . Uniques/NPCs Destroyed . | . . . . . Combat | -11 -10 -10 -9 -8 -------- Run | Yrd Mat Min Mat Mat Hostile Shots Fired 246 | . 40 . 62 144 Missed 58 | . 11 . 19 28 Damage Taken 2777 | . 313 . 524 1940 Core 564 | . 55 . 58 451 Absorbed by Shields . | . . . . . Core Remaining (%) 87 | 100 . 78 85 . Volleys Fired 78 | 1 16 5 29 27 Largest 3 | 2 2 2 2 3 Hottest 173 | 90 100 70 70 173 Shots Fired 170 | 2 31 12 58 67 Gun 157 | 2 31 12 58 54 Cannon 9 | . . . . 9 Launcher 4 | . . . . 4 Special . | . . . . . Kinetic 113 | . 12 6 57 38 Thermal 53 | 2 19 6 1 25 Explosive 3 | . . . . 3 Electromagnetic 1 | . . . . 1 Robot Hit Streak 11 | . 10 4 9 11 Robot Miss Streak 4 | . 4 1 2 4 Penetration Max . | . . . . . Secondary Targets 4 | . 2 . 2 . Max Gunslinging Chain 1 | . 1 . 1 . Shots Hit Robots 108 | . 22 8 40 38 Core Hits 54 | . 14 2 15 23 Critical Kills . | . . . . . Critical Parts Destroyed 1 | . . . 1 . Critical Strikes 3 | . 1 1 1 . Burn 2 | . 1 1 . . Destroy 1 | . . . 1 . Melee Attacks . | . . . . . Impact . | . . . . . Slashing . | . . . . . Piercing . | . . . . . Sneak Attacks . | . . . . . Combat Hostiles . | . . . . . Follow-up Attacks . | . . . . . Damage Inflicted 2248 | . 295 107 626 1220 Guns 1573 | . 295 104 626 548 Cannons 86 | . . . . 86 Explosions 586 | . . . . 586 Melee . | . . . . . Ramming 3 | . . 3 . . Kinetic 1231 | . 147 40 614 430 Thermal 572 | . 148 64 12 348 Explosive 393 | . . . . 393 Electromagnetic 49 | . . . . 49 Impact . | . . . . . Slashing . | . . . . . Piercing . | . . . . . Highest Corruption 5 | . 5 5 . . Average Corruption 4 | . 4 5 . . Corruption Purged . | . . . . . Corruption Blocked . | . . . . . Effects 25 | . 7 18 . . Message Errors 4 | . 2 2 . . Matter Fused 7 | . 2 5 . . Heat Flow Errors 4 | . . 4 . . Energy Discharges 2 | . 1 1 . . Data Loss (minor) 2 | . . 2 . . Data Loss (major) 2 | . 1 1 . . Misfires 2 | . . 2 . . Alerts 1 | . . 1 . . Weapon Failures 1 | . 1 . . . Overload Shots . | . . . . . Overflow Damage 114 | . . . . 114 Projectiles . | . . . . . Explosions 114 | . . . . 114 Melee . | . . . . . Knockbacks . | . . . . . Impact . | . . . . . Kinetic . | . . . . . Secondary . | . . . . . Self-Inflicted Damage 86 | . . . . 86 Shots 2 | . . . . 2 Rammed . | . . . . . Targets Rammed 1 | . . 1 . . Kicked 1 | . . 1 . . Crushed . | . . . . . Highest Temperature 337 | 30 24 182 71 337 Average Temperature 79 | 17 7 77 18 123 Received Heat Transfer 1542 | . 123 . 240 1179 Effects 2 | . . . . 2 Energy Bleed 2 | . . . . 2 Siege Activations . | . . . . . Robots Corrupted . | . . . . . Combat Hostiles . | . . . . . Parts Fried . | . . . . . Impact Corruptions . | . . . . . Robots Melted . | . . . . . Combat Hostiles . | . . . . . Parts Melted 1 | . 1 . . . Heat Transferred 1358 | . 518 259 37 544 Parts Sabotaged . | . . . . . Parts Stolen . | . . . . . Parts Stripped . | . . . . . Power Chain Reactions . | . . . . . Alert | -11 -10 -10 -9 -8 ------- Run | Yrd Mat Min Mat Mat Peak Influence 353 | . 152 63 353 177 Initial 74 | . . 58 . 74 Average 89 | . 52 47 147 105 Maximum Alert Level 1 | . . . 1 . Low Security (%) 92 | 100 100 100 65 100 Level 1 7 | . . . 34 . Level 2 . | . . . . . Level 3 . | . . . . . Level 4 . | . . . . . Level 5 . | . . . . . High Security . | . . . . . Max Security . | . . . . . Squads Dispatched 8 | . 1 . 3 4 Investigation 4 | . 1 . 2 1 Extermination . | . . . . . Reinforcement 3 | . . . 1 2 Assault . | . . . . . Garrison 1 | . . . . 1 Intercept . | . . . . . Searches Triggered . | . . . . . Construction Impeded 1 | . . . . 1 Haulers Reinforced . | . . . . . Active Scanning Responses . | . . . . . Cargo Convoy Interrupts . | . . . . . Stealth | -11 -10 -10 -9 -8 --------- Run | Yrd Mat Min Mat Mat Distress Signals 3 | . 1 . . 2 Communications Jammed . | . . . . . Distress Signals . | . . . . . Times Spotted 45 | . 9 . 15 21 Peak Tracking Total 10 | . 4 . 5 10 Tactical Retreats 2 | . . . . 2 Traps | -11 -10 -10 -9 -8 ------- Run | Yrd Mat Min Mat Mat Traps Triggered 5 | . 3 . 1 1 Indirectly . | . . . . . Trap Hack Attempts . | . . . . . Triggered . | . . . . . Disarmed . | . . . . . Reprogrammed . | . . . . . Reused . | . . . . . Traps Extracted . | . . . . . Installed . | . . . . . Triggered . | . . . . . Machines | -11 -10 -10 -9 -8 ---------- Run | Yrd Mat Min Mat Mat Machines Disabled 5 | . . . 3 2 Max in Single Turn 2 | . . . 1 2 Machines Repaired . | . . . . . Machines Dismantled . | . . . . . Machines Sabotaged . | . . . . . Overloaded Fab Kills . | . . . . . Hacking | -11 -10 -10 -9 -8 --------- Run | Yrd Mat Min Mat Mat Machines Accessed 2 | . 1 . 1 . Terminals 2 | . 1 . 1 . Fabricators . | . . . . . Repair Stations . | . . . . . Recycling Units . | . . . . . Scanalyzers . | . . . . . Garrison Access . | . . . . . Total Hacks 6 | . 4 . 2 . Successful 3 | . 2 . 1 . Failed 3 | . 2 . 1 . Catastrophic . | . . . . . Database Lockouts . | . . . . . Manual . | . . . . . Terminals 6 | . 4 . 2 . Fabricators . | . . . . . Repair Stations . | . . . . . Recycling Units . | . . . . . Scanalyzers . | . . . . . Garrison Access . | . . . . . Terminal Hacks 3 | . 2 . 1 . Dispatch Records 1 | . 1 . . . Zone Layout 2 | . 1 . 1 . Fabricator Hacks . | . . . . . Repair Station Hacks . | . . . . . Recycling Unit Hacks . | . . . . . Scanalyzer . | . . . . . Garrison Access Hacks . | . . . . . Unauthorized Hacks . | . . . . . Terminals . | . . . . . Fabricators . | . . . . . Repair Stations . | . . . . . Recycling Units . | . . . . . Scanalyzers . | . . . . . Garrison Access . | . . . . . Data Cores Recovered . | . . . . . Used . | . . . . . Hacking Detections 2 | . 1 . 1 . Full Trace Events 1 | . 1 . . . Feedback Events . | . . . . . Feedback Blocked . | . . . . . Robot Schematics Acquired . | . . . . . Robots Built . | . . . . . Authchips . | . . . . . Time . | . . . . . Total Robot Build Rating . | . . . . . Part Schematics Acquired . | . . . . . Parts Built . | . . . . . Authchips . | . . . . . Time . | . . . . . Total Part Build Rating . | . . . . . Parts Repaired . | . . . . . Time . | . . . . . Parts Recycled . | . . . . . Recycled Matter . | . . . . . Retrieved Matter . | . . . . . Retrieved Components . | . . . . . Parts Scanalyzed . | . . . . . Part Schematics Acquired . | . . . . . Parts Damaged . | . . . . . Bothacking | -11 -10 -10 -9 -8 ------------ Run | Yrd Mat Min Mat Mat Used RIF Installer . | . . . . . Robots Hacked . | . . . . . Non-combat . | . . . . . Combat . | . . . . . Robot Hacks Applied . | . . . . . Relay Couplers Released . | . . . . . Fabnet Peak Effective % . | . . . . . Robots Rewired . | . . . . . Allies Hacked . | . . . . . Hacks Repelled . | . . . . . Allies | -11 -10 -10 -9 -8 -------- Run | Yrd Mat Min Mat Mat Total Allies 3 | . . 3 . . Largest Group 3 | . . 3 1 . Highest-Rated Group 40 | . . 40 16 . Highest-Rated Ally 16 | . . 16 16 . Total Orders 3 | . . 3 . . ROAM 2 | . . 2 . . AID 1 | . . 1 . . Ally Attacks 19 | . . . 19 . Total Damage 239 | . . . 239 . Kills 6 | . . . 6 . Allies Corrupted . | . . . . . Allies Melted . | . . . . . Intel | -11 -10 -10 -9 -8 ------- Run | Yrd Mat Min Mat Mat Robot Analysis Total . | . . . . . Derelict Logs Recovered 1 | . . 1 . . Drone Launches . | . . . . . Drone Recoveries . | . . . . . Exploration | -11 -10 -10 -9 -8 ------------- Run | Yrd Mat Min Mat Mat Turns Passed 1938 | 60 231 529 439 679 Spaces Moved 987 | 59 158 268 272 230 Core 4 | 3 . . . 1 Treads . | . . . . . Legs 789 | . 20 268 272 229 Wheels 194 | 56 138 . . . Hover . | . . . . . Flight . | . . . . . Fastest Speed 50 | 50 80 190 120 120 Average Speed 148 | 78 107 190 120 180 Slowest Speed 500 | 80 260 190 120 500 Overloaded Moves . | . . . . . Propulsion Burnouts . | . . . . . Robots Hopped . | . . . . . Cave-ins Triggered . | . . . . . Exploration Rate (%) 31 | 3 34 59 34 28 Regions Visited 4 Branch Regions 1 Pre-discovered Areas . | . . . . . Known Exits Taken 1 | . . . 1 . Unknown Exits Taken 3 | 1 1 1 . . Scrap Searched . | . . . . . Spaces Dug . | . . . . . Terrain Destroyed 41 | . . . . 41 Melee . | . . . . . Projectile . | . . . . . AOE 41 | . . . . 41 Terrain Rammed . | . . . . . Walls Destroyed . | . . . . . Machines Disabled . | . . . . . Actions | -11 -10 -10 -9 -8 --------- Run | Yrd Mat Min Mat Mat Total 1303 | 67 185 277 335 439 Wait 164 | . . 3 16 145 Move 983 | 58 157 267 271 230 Hop . | . . . . . Pick Up 21 | 2 4 1 8 6 Fast Attach 10 | 6 2 . . 2 Attach 16 | . . . 2 14 Detach . | . . . . . Swap 21 | . 5 . 6 10 Drop 9 | . 1 . 3 5 Fire 78 | 1 16 5 29 27 Melee . | . . . . . Ram . | . . . . . Kick 1 | . . 1 . . Crush . | . . . . . Escape Stasis . | . . . . . Rewire . | . . . . . Trap . | . . . . . Miscellaneous . | . . . . . Route ------- -11/Scrapyard -10/Materials -10/Mines -9/Materials (discovered 2 exits: *Mat x2) -8/Materials History --------- Turn | Location | Event 16 | -11/Scrapyard | Discovered new exit (range 15) 61 | -11/Scrapyard | Entered Materials 213 | -10/Materials | Discovered new exit (range 16) 292 | -10/Materials | Entered Mines 292 | -10/Mines | Assisted by bots powering up and referring to "LRC-V3" 309 | -10/Mines | Build established: Mutant 356 | -10/Mines | Received a Rocket Launcher from a helpful Derelict 701 | -10/Mines | Learned 4 Materials zone layouts 813 | -10/Mines | Discovered new exit (range 4) 821 | -10/Mines | Entered Materials 821 | -9/Materials | Accompanied by 1 ally 821 | -9/Materials | Evolved 2 slots: Propulsion x2 822 | -9/Materials | Identified exit to Materials 1109 | -9/Materials | Build established: Scavenger-Mutant 1244 | -9/Materials | Discovered exit to Materials (range 15) 1260 | -9/Materials | Entered another Materials area 1260 | -8/Materials | Evolved 2 slots: Utility x1, Weapon x1 1661 | -8/Materials | Build established: Scavenger-Tank 1874 | -8/Materials | Garrison activated, responded to threat 1931 | -8/Materials | Core integrity fell below 50% 1937 | -8/Materials | Core integrity fell below 20% 1939 | -8/Materials | Self-destructed Last Messages --------------- 01919_ Aluminum Leg destroyed. 01919_ Destroyed Aluminum Leg. 01919_ ALERT: Construction progress impeded, dispatching reinforcements to local area. 01920_ Processing Tank disabled. 01920_ Critical hit (Burn: +37). 01921_ Field Laser destroyed. 01922_ Recoil Stabilizer destroyed. 01925_ Acquired 17 matter. 01926_ Critical hit (Burn: +37). 01927_ The unstable cave ceiling collapses. 01927_ Aluminum Leg destroyed. 01931_ Shock Bomb Launcher destroyed. 01933_ Critical hit (Burn: +37). 01934_ Beam Cannon destroyed. 01936_ K-01 Serf collects debris. 01938_ The unstable cave ceiling collapses. 01938_ Lgt. Ion Engine crushed. 01938_ Lgt. Nuclear Core destroyed. 01939_ U-05 Engineer lays Concrete. Map ----- +----------------------------------------------------+ | ?????????????????????????????????????????????????? | | ?????????????????????????????????????????????????? | | ?????????????????????????????????????????????????? | | ?????????????????????????????????????????????????? | | ?????????????????????????????????????????????????? | | ?????????????????????????????????????????????????? | | ?????????????????????????????????????????????????? | | ?????????????????????????????????????????????????? | | ?????????????????????????????????????????????????? | | ?????????????????????###?#####???????????????????? | | ??????????????????? !!?????????????????? | | ???????????????? ??? !/?????????????????? | | ???????????????? ??? T ??????????????????? | | ????????????????# ? ??????????????????? | | ????????????????# !???????????????????? | | ????????????????# << !???????????????????? | | ????????????????? << ????????????????????? | | ????????????????? ????????????????????? | | ?????????????????? ???????????????######+ | | ?????????????? % ???????????????? | | ?????????????### """k #????????????????? | | ?????????????# """ ###???????????????? | | ?????????????# """ g # #?????????????????# | | ?????????????# g[% ##?????????????????# | | ???????????????# gg%g ################### | | ???????????????# """g @* | | ???????????????# """ *[ | | ???????????????# """ = [[ | | ????????????????? u """"" """"" "" | | ???????????????# """"" """"" "" | | ???????????????# """ """" """"" "" | | ???????????????# """ | | ???????????????# """ | | ???????????????# # ######## | | ???????????????## ?? # #??????# | | ??????????????????? """ #! !#??????# | | ????????????????????""" ##!!!!##??????# | | ??????????????????????" #######???????# | | ?????????????????????? ??????????????# | | ?????????????????????? ??????????????# | | ?????????????????????? ??????????????######### | | ???????????????????????? ??????????????????????# | | ?????????????????????????????????????????????????# | | ???????????????????????????????????????????? | | ?????????????????????????????????????????# """ | | ?????????????????????????????????????????# """ | | ?????????????????????????????????????????#? """ | | ?????????????????????????????????????????# ? | | ?????????????????????????????????????????# | | ?????????????????????????????????????????# " " | +----------------------------------------------------+ Best States ------------- Heat Dissipation 42 Energy Generation 10 Energy Capacity 250 Matter Stores 300 Matter Capacity 300 Sight Range 16 Robot Scan Range 14 Terrain Scan Density 10 Armor Coverage 225 Evasion (%) 55 Recoil Reduction 4 Item Schematics ----------------- None Robot Schematics ------------------ None Fabricated ------------ Nothing Alien Tech Used ----------------- None Achievements -------------- None Challenges ------------ None Game ------ Seed TacticalActiveCompressor Manual? 0 Play Time 00:19:58 Cumulative 16.8 hours Start 2024.09.15 @ 21:36:43 End 2024.09.15 @ 21:53:29 Sessions 1 Manual Loads 0 Difficulty Rogue Special Mode None Game No. 67 Rogue 67 Adventurer 0 Explorer 0 Win Type - Total 0 Types 0/0/0/0/0/0/0/0/0 Lore% 10 Gallery% 20 Achievement% 15 Wizard Run 0 Options --------- Layout 2 ASCII 0 Keyboard 0 Movement Mouse Keybinds 0 Fullscreen 1 Font 16/Smallcaps Map View 55x47 Zoom Use 0% Tactical HUD 1 Map Filters NONE Filters NONE Steam 1 RUN: f4ed4a5e-00e5-476a-9c1f-01e7fe1785cf